[Event "Titled Tuesday Blitz March 08 Early 2022"]
[White "Kushko, Dmitriy"]
[Black "Hernandez Jimenez, Alexander Andres"]
[WhiteFideId "14162261"]
[BlackFideId "3900452"]
[WhiteElo "2225"]
[BlackElo "2082"]
[Result "1-0"]
[Round "07"]
[TimeControl "180+1"]
[Date "2022.03.09"]
[WhiteClock "0:01:07"]
[BlackClock "0:00:08"]

1. Nf3 {[%clk 0:03:00]}  d5 {[%clk 0:02:53]} 2. g3 {[%clk 0:03:00]}  c6 {[%clk 0:02:53]} 3. Bg2 {[%clk 0:03:01]}  Nf6 {[%clk 0:02:53]} 4. O-O {[%clk 0:03:01]}  g6 {[%clk 0:02:53]} 5. b3 {[%clk 0:03:00]}  Bg7 {[%clk 0:02:53]} 6. Bb2 {[%clk 0:03:01]}  O-O {[%clk 0:02:53]} 7. c4 {[%clk 0:03:01]}  a6 {[%clk 0:02:51]} 8. d3 {[%clk 0:03:00]}  b5 {[%clk 0:02:51]} 9. Nbd2 {[%clk 0:03:00]}  Nbd7 {[%clk 0:02:43]} 10. Qc2 {[%clk 0:03:00]}  Bb7 {[%clk 0:02:42]} 11. e4 {[%clk 0:02:53]}  Rc8 {[%clk 0:02:25]} 12. e5 {[%clk 0:02:44]}  Ng4 {[%clk 0:02:22]} 13. Rae1 {[%clk 0:02:05]}  h5 {[%clk 0:02:06]} 14. e6 {[%clk 0:02:02]}  fxe6 {[%clk 0:02:04]} 15. Bxg7 {[%clk 0:02:01]}  Kxg7 {[%clk 0:02:03]} 16. Ng5 {[%clk 0:01:56]}  Nc5 {[%clk 0:01:01]} 17. d4 {[%clk 0:01:46]}  Rf5 {[%clk 0:01:00]} 18. h4 {[%clk 0:01:26]}  Rxg5 {[%clk 0:01:00]} 19. hxg5 {[%clk 0:01:25]}  Ne4 {[%clk 0:00:51]} 20. Nxe4 {[%clk 0:01:23]}  dxe4 {[%clk 0:00:51]} 21. Qxe4 {[%clk 0:01:22]}  Rc7 {[%clk 0:00:36]} 22. f3 {[%clk 0:01:21]}  c5 {[%clk 0:00:33]} 23. Qe2 {[%clk 0:01:14]}  Qxd4+ {[%clk 0:00:32]} 24. Kh1 {[%clk 0:01:13]}  h4 {[%clk 0:00:17]} 25. fxg4 {[%clk 0:01:09]}  Bxg2+ {[%clk 0:00:09]} 26. Kxg2 {[%clk 0:01:09]}  h3+ {[%clk 0:00:08]} 27. Kxh3 {[%clk 0:01:07]} 1-0


[Site "https://www.chess.com"]

[Event "Titled Tuesday Blitz March 08 Early 2022"]
[White "Lauridsen, Jesper Morch"]
[Black "Gulecyuz, Deniz"]
[WhiteFideId "1401890"]
[BlackFideId "30921341"]
[WhiteElo "2265"]
[BlackElo "1923"]
[Result "0-1"]
[Round "07"]
[TimeControl "180+1"]
[Date "2022.03.09"]
[WhiteClock "0:00:07"]
[BlackClock "0:00:24"]

1. e4 {[%clk 0:02:44]}  c5 {[%clk 0:02:59]} 2. Nf3 {[%clk 0:02:43]}  Nc6 {[%clk 0:03:00]} 3. d4 {[%clk 0:02:43]}  cxd4 {[%clk 0:03:01]} 4. Nxd4 {[%clk 0:02:43]}  Nf6 {[%clk 0:03:01]} 5. Nc3 {[%clk 0:02:43]}  e5 {[%clk 0:03:02]} 6. Nf5 {[%clk 0:02:43]}  d5 {[%clk 0:03:02]} 7. exd5 {[%clk 0:02:42]}  Bxf5 {[%clk 0:03:02]} 8. dxc6 {[%clk 0:02:41]}  Qxd1+ {[%clk 0:03:03]} 9. Nxd1 {[%clk 0:02:41]}  bxc6 {[%clk 0:03:03]} 10. Ne3 {[%clk 0:02:39]}  Bg6 {[%clk 0:03:01]} 11. Be2 {[%clk 0:02:33]}  Bc5 {[%clk 0:03:00]} 12. O-O {[%clk 0:02:33]}  O-O {[%clk 0:02:58]} 13. c3 {[%clk 0:02:31]}  Rfe8 {[%clk 0:02:31]} 14. Nc4 {[%clk 0:02:29]}  Rad8 {[%clk 0:02:30]} 15. Bg5 {[%clk 0:02:27]}  h6 {[%clk 0:02:28]} 16. Bxf6 {[%clk 0:02:26]}  gxf6 {[%clk 0:02:29]} 17. Rad1 {[%clk 0:02:25]}  Kf8 {[%clk 0:02:25]} 18. b4 {[%clk 0:02:17]}  Be7 {[%clk 0:02:21]} 19. Na5 {[%clk 0:02:11]}  c5 {[%clk 0:02:16]} 20. Nc6 {[%clk 0:01:59]}  Rxd1 {[%clk 0:02:16]} 21. Rxd1 {[%clk 0:01:59]}  cxb4 {[%clk 0:02:17]} 22. Nxe7 {[%clk 0:01:56]}  Kxe7 {[%clk 0:02:14]} 23. cxb4 {[%clk 0:01:47]}  Rc8 {[%clk 0:01:57]} 24. a4 {[%clk 0:01:35]}  Bc2 {[%clk 0:01:56]} 25. Rc1 {[%clk 0:01:31]}  Kd8 {[%clk 0:01:39]} 26. Bd1 {[%clk 0:01:18]}  Bd3 {[%clk 0:01:21]} 27. Rxc8+ {[%clk 0:01:14]}  Kxc8 {[%clk 0:01:21]} 28. f3 {[%clk 0:01:11]}  f5 {[%clk 0:01:21]} 29. Kf2 {[%clk 0:01:11]}  f6 {[%clk 0:01:21]} 30. Ke3 {[%clk 0:01:10]}  Bf1 {[%clk 0:01:21]} 31. g3 {[%clk 0:01:08]}  Kc7 {[%clk 0:01:19]} 32. Bc2 {[%clk 0:01:07]}  Bh3 {[%clk 0:01:17]} 33. a5 {[%clk 0:01:06]}  Kd6 {[%clk 0:01:13]} 34. Ba4 {[%clk 0:01:01]}  Bf1 {[%clk 0:01:09]} 35. b5 {[%clk 0:01:00]}  Kc5 {[%clk 0:01:09]} 36. b6 {[%clk 0:00:55]}  axb6 {[%clk 0:01:08]} 37. axb6 {[%clk 0:00:54]}  Kxb6 {[%clk 0:01:09]} 38. Bc2 {[%clk 0:00:50]}  Bh3 {[%clk 0:01:09]} 39. Bd1 {[%clk 0:00:41]}  Kc5 {[%clk 0:01:09]} 40. g4 {[%clk 0:00:41]}  fxg4 {[%clk 0:01:05]} 41. fxg4 {[%clk 0:00:40]}  Bg2 {[%clk 0:01:05]} 42. h4 {[%clk 0:00:36]}  Kd6 {[%clk 0:01:01]} 43. Bb3 {[%clk 0:00:31]}  Bd5 {[%clk 0:01:01]} 44. Bc2 {[%clk 0:00:27]}  Be6 {[%clk 0:00:58]} 45. Kf3 {[%clk 0:00:23]}  Kc5 {[%clk 0:00:48]} 46. Bg6 {[%clk 0:00:13]}  Kd4 {[%clk 0:00:48]} 47. Bh7 {[%clk 0:00:13]}  e4+ {[%clk 0:00:30]} 48. Ke2 {[%clk 0:00:12]}  Bxg4+ {[%clk 0:00:30]} 49. Kf2 {[%clk 0:00:11]}  f5 {[%clk 0:00:30]} 50. h5 {[%clk 0:00:11]}  f4 {[%clk 0:00:30]} 51. Bg6 {[%clk 0:00:10]}  e3+ {[%clk 0:00:31]} 52. Ke1 {[%clk 0:00:10]}  f3 {[%clk 0:00:31]} 53. Bf7 {[%clk 0:00:08]}  f2+ {[%clk 0:00:31]} 54. Kf1 {[%clk 0:00:08]}  Bh3+ {[%clk 0:00:23]} 55. Ke2 {[%clk 0:00:07]}  f1=Q# {[%clk 0:00:24]} 0-1


[Site "https://www.chess.com"]

[Event "Titled Tuesday Blitz March 08 Early 2022"]
[White "Lazavik, Denis"]
[Black "Zierk, Steven"]
[WhiteFideId "13515110"]
[BlackFideId "2034255"]
[WhiteElo "2437"]
[BlackElo "2494"]
[Result "0-1"]
[Round "07"]
[TimeControl "180+1"]
[Date "2022.03.08"]
[WhiteClock "0:00:06"]
[BlackClock "0:00:16"]

1. d4 {[%clk 0:03:00]}  d5 {[%clk 0:02:59]} 2. c4 {[%clk 0:03:01]}  dxc4 {[%clk 0:03:00]} 3. Nf3 {[%clk 0:03:01]}  Nf6 {[%clk 0:03:00]} 4. e3 {[%clk 0:03:02]}  e6 {[%clk 0:03:01]} 5. Bxc4 {[%clk 0:03:02]}  c5 {[%clk 0:03:01]} 6. O-O {[%clk 0:03:02]}  a6 {[%clk 0:03:01]} 7. dxc5 {[%clk 0:02:58]}  Qxd1 {[%clk 0:03:00]} 8. Rxd1 {[%clk 0:02:58]}  Bxc5 {[%clk 0:03:01]} 9. Be2 {[%clk 0:02:58]}  b6 {[%clk 0:02:59]} 10. Nc3 {[%clk 0:02:53]}  Nbd7 {[%clk 0:02:58]} 11. Nd2 {[%clk 0:02:40]}  Bb7 {[%clk 0:02:55]} 12. Nc4 {[%clk 0:02:40]}  O-O {[%clk 0:02:49]} 13. Na4 {[%clk 0:02:37]}  Bd5 {[%clk 0:01:57]} 14. Nxc5 {[%clk 0:02:30]}  Bxc4 {[%clk 0:01:55]} 15. Bxc4 {[%clk 0:02:24]}  Nxc5 {[%clk 0:01:54]} 16. b3 {[%clk 0:02:07]}  Rac8 {[%clk 0:01:50]} 17. f3 {[%clk 0:02:00]}  b5 {[%clk 0:01:48]} 18. Be2 {[%clk 0:01:59]}  Nd5 {[%clk 0:01:47]} 19. Bd2 {[%clk 0:01:56]}  f5 {[%clk 0:01:45]} 20. Kf2 {[%clk 0:01:50]}  Rc7 {[%clk 0:01:39]} 21. Ba5 {[%clk 0:01:21]}  Rc6 {[%clk 0:01:36]} 22. Rd4 {[%clk 0:01:13]}  f4 {[%clk 0:01:29]} 23. exf4 {[%clk 0:00:46]}  Nxf4 {[%clk 0:01:30]} 24. Bb4 {[%clk 0:00:39]}  e5 {[%clk 0:01:21]} 25. Rd2 {[%clk 0:00:38]}  Ne4+ {[%clk 0:01:13]} 26. fxe4 {[%clk 0:00:28]}  Nd3+ {[%clk 0:01:13]} 27. Kg1 {[%clk 0:00:23]}  Nxb4 {[%clk 0:01:13]} 28. a4 {[%clk 0:00:23]}  bxa4 {[%clk 0:01:11]} 29. Bc4+ {[%clk 0:00:23]}  Kh8 {[%clk 0:01:01]} 30. Rxa4 {[%clk 0:00:23]}  Rb6 {[%clk 0:01:01]} 31. Ra5 {[%clk 0:00:23]}  Nc6 {[%clk 0:00:55]} 32. Rxa6 {[%clk 0:00:23]}  Rxa6 {[%clk 0:00:55]} 33. Bxa6 {[%clk 0:00:24]}  Nd4 {[%clk 0:00:56]} 34. Bc4 {[%clk 0:00:24]}  Rb8 {[%clk 0:00:51]} 35. Rb2 {[%clk 0:00:24]}  g5 {[%clk 0:00:41]} 36. Kf2 {[%clk 0:00:24]}  Kg7 {[%clk 0:00:41]} 37. Ke3 {[%clk 0:00:25]}  Kf6 {[%clk 0:00:41]} 38. Kd3 {[%clk 0:00:24]}  Ke7 {[%clk 0:00:40]} 39. Kc3 {[%clk 0:00:21]}  Rf8 {[%clk 0:00:39]} 40. Ra2 {[%clk 0:00:20]}  Rf4 {[%clk 0:00:32]} 41. Ra7+ {[%clk 0:00:19]}  Kd6 {[%clk 0:00:32]} 42. Ra6+ {[%clk 0:00:14]}  Kc7 {[%clk 0:00:31]} 43. Ra7+ {[%clk 0:00:14]}  Kd6 {[%clk 0:00:31]} 44. Rxh7 {[%clk 0:00:14]}  Rxe4 {[%clk 0:00:31]} 45. Rh6+ {[%clk 0:00:15]}  Kc7 {[%clk 0:00:31]} 46. Rg6 {[%clk 0:00:15]}  g4 {[%clk 0:00:25]} 47. b4 {[%clk 0:00:12]}  Rf4 {[%clk 0:00:19]} 48. b5 {[%clk 0:00:13]}  Nf5 {[%clk 0:00:18]} 49. b6+ {[%clk 0:00:12]}  Kb8 {[%clk 0:00:16]} 50. Rf6 {[%clk 0:00:09]}  Ne3 {[%clk 0:00:15]} 51. Rxf4 {[%clk 0:00:07]}  exf4 {[%clk 0:00:16]} 52. g3 {[%clk 0:00:05]}  f3 {[%clk 0:00:15]} 53. Bd3 {[%clk 0:00:02]}  f2 {[%clk 0:00:14]} 54. Kd4 {[%clk 0:00:02]}  f1=Q {[%clk 0:00:14]} 55. Bxf1 {[%clk 0:00:02]}  Nxf1 {[%clk 0:00:15]} 56. Kc5 {[%clk 0:00:02]}  Kb7 {[%clk 0:00:14]} 57. Kd4 {[%clk 0:00:02]}  Nxh2 {[%clk 0:00:15]} 58. Ke4 {[%clk 0:00:03]}  Kxb6 {[%clk 0:00:15]} 59. Ke3 {[%clk 0:00:04]}  Kc5 {[%clk 0:00:15]} 60. Kf4 {[%clk 0:00:05]}  Kd4 {[%clk 0:00:16]} 61. Kg5 {[%clk 0:00:06]}  Ke3 {[%clk 0:00:16]} 0-1


[Site "https://www.chess.com"]

[Event "Titled Tuesday Blitz March 08 Early 2022"]
[White "Lopez Del Alamo, Antonio"]
[Black "Omelja, Artem"]
[WhiteFideId "2227339"]
[BlackFideId "14119846"]
[WhiteElo "2082"]
[BlackElo "2382"]
[Result "1-0"]
[Round "07"]
[TimeControl "180+1"]
[Date "2022.03.09"]
[WhiteClock "0:00:50"]
[BlackClock "0:00:02"]

1. e4 {[%clk 0:03:00]}  c5 {[%clk 0:02:57]} 2. Nf3 {[%clk 0:03:00]}  e6 {[%clk 0:02:50]} 3. d3 {[%clk 0:02:59]}  Nc6 {[%clk 0:02:46]} 4. g3 {[%clk 0:02:59]}  Nf6 {[%clk 0:02:45]} 5. Bg2 {[%clk 0:02:58]}  d5 {[%clk 0:02:45]} 6. Nbd2 {[%clk 0:02:58]}  Be7 {[%clk 0:02:44]} 7. O-O {[%clk 0:02:58]}  O-O {[%clk 0:02:43]} 8. e5 {[%clk 0:02:58]}  Nd7 {[%clk 0:02:43]} 9. Re1 {[%clk 0:02:59]}  Qc7 {[%clk 0:02:43]} 10. Qe2 {[%clk 0:02:59]}  b5 {[%clk 0:02:40]} 11. Nf1 {[%clk 0:02:58]}  Bb7 {[%clk 0:02:40]} 12. h4 {[%clk 0:02:57]}  Nd4 {[%clk 0:02:38]} 13. Nxd4 {[%clk 0:02:56]}  cxd4 {[%clk 0:02:39]} 14. Bf4 {[%clk 0:02:56]}  Rfc8 {[%clk 0:02:37]} 15. Rec1 {[%clk 0:02:57]}  a5 {[%clk 0:02:35]} 16. Nh2 {[%clk 0:02:56]}  b4 {[%clk 0:02:34]} 17. Nf3 {[%clk 0:02:56]}  Qb6 {[%clk 0:02:33]} 18. Bh3 {[%clk 0:02:36]}  a4 {[%clk 0:02:27]} 19. Kg2 {[%clk 0:02:25]}  Rc7 {[%clk 0:02:10]} 20. Ng5 {[%clk 0:02:19]}  h6 {[%clk 0:02:07]} 21. Qh5 {[%clk 0:02:14]}  hxg5 {[%clk 0:02:02]} 22. hxg5 {[%clk 0:02:15]}  g6 {[%clk 0:01:31]} 23. Qh4 {[%clk 0:02:14]}  Bf8 {[%clk 0:01:31]} 24. Bg4 {[%clk 0:02:10]}  Bg7 {[%clk 0:01:31]} 25. Rh1 {[%clk 0:01:59]}  Rxc2 {[%clk 0:01:10]} 26. Rh2 {[%clk 0:01:43]}  Rac8 {[%clk 0:00:51]} 27. Rah1 {[%clk 0:01:42]}  Kf8 {[%clk 0:00:47]} 28. Qh7 {[%clk 0:01:37]}  Rxb2 {[%clk 0:00:35]} 29. Bd1 {[%clk 0:01:31]}  b3 {[%clk 0:00:22]} 30. axb3 {[%clk 0:01:23]}  a3 {[%clk 0:00:22]} 31. Rh6 {[%clk 0:01:11]}  a2 {[%clk 0:00:18]} 32. Rxg6 {[%clk 0:01:11]}  fxg6 {[%clk 0:00:18]} 33. Qxg6 {[%clk 0:01:11]}  Qd8 {[%clk 0:00:03]} 34. Rh7 {[%clk 0:01:07]}  Qe7 {[%clk 0:00:03]} 35. Qh5 {[%clk 0:01:06]}  a1=Q {[%clk 0:00:03]} 36. g6 {[%clk 0:01:06]}  Rxf2+ {[%clk 0:00:02]} 37. Kxf2 {[%clk 0:01:04]}  Ke8 {[%clk 0:00:02]} 38. Rh8+ {[%clk 0:01:01]}  Nf8 {[%clk 0:00:01]} 39. Bg5 {[%clk 0:01:00]}  Qb2+ {[%clk 0:00:02]} 40. Be2 {[%clk 0:00:59]}  Qb4 {[%clk 0:00:02]} 41. Qf3 {[%clk 0:00:50]} 1-0


[Site "https://www.chess.com"]

[Event "Titled Tuesday Blitz March 08 Early 2022"]
[White "Madaminov, Mukhiddin"]
[Black "Vogel, Roven"]
[WhiteFideId "14210703"]
[BlackFideId "12908088"]
[WhiteElo "1916"]
[BlackElo "2516"]
[Result "1-0"]
[Round "07"]
[TimeControl "180+1"]
[Date "2022.03.08"]
[WhiteClock "0:00:06"]
[BlackClock "0:00:47"]

1. d4 {[%clk 0:03:00]}  d5 {[%clk 0:02:57]} 2. Nc3 {[%clk 0:03:01]}  Nf6 {[%clk 0:02:56]} 3. Bf4 {[%clk 0:03:01]}  c5 {[%clk 0:02:56]} 4. e3 {[%clk 0:03:01]}  cxd4 {[%clk 0:02:56]} 5. exd4 {[%clk 0:03:02]}  a6 {[%clk 0:02:56]} 6. Nf3 {[%clk 0:03:03]}  Bg4 {[%clk 0:02:43]} 7. h3 {[%clk 0:03:02]}  Bxf3 {[%clk 0:02:43]} 8. Qxf3 {[%clk 0:03:03]}  Nc6 {[%clk 0:02:43]} 9. O-O-O {[%clk 0:03:02]}  e6 {[%clk 0:02:44]} 10. g4 {[%clk 0:03:01]}  Bd6 {[%clk 0:02:43]} 11. g5 {[%clk 0:02:59]}  Bxf4+ {[%clk 0:02:43]} 12. Qxf4 {[%clk 0:03:00]}  Nh5 {[%clk 0:02:42]} 13. Qe3 {[%clk 0:02:54]}  Qd6 {[%clk 0:02:37]} 14. Ne2 {[%clk 0:02:19]}  O-O-O {[%clk 0:02:33]} 15. h4 {[%clk 0:02:11]}  Kb8 {[%clk 0:02:32]} 16. Bh3 {[%clk 0:02:08]}  g6 {[%clk 0:02:29]} 17. Bg4 {[%clk 0:02:07]}  Ng7 {[%clk 0:02:29]} 18. h5 {[%clk 0:02:04]}  Rc8 {[%clk 0:02:27]} 19. Kb1 {[%clk 0:02:03]}  Ne7 {[%clk 0:02:22]} 20. Ng3 {[%clk 0:01:46]}  Ka7 {[%clk 0:02:16]} 21. Rde1 {[%clk 0:01:37]}  Qc7 {[%clk 0:02:11]} 22. c3 {[%clk 0:01:35]}  Nc6 {[%clk 0:02:10]} 23. Be2 {[%clk 0:01:20]}  Na5 {[%clk 0:02:08]} 24. Bd3 {[%clk 0:01:20]}  Qb6 {[%clk 0:02:06]} 25. Rc1 {[%clk 0:01:13]}  Nf5 {[%clk 0:02:03]} 26. Nxf5 {[%clk 0:01:10]}  gxf5 {[%clk 0:02:04]} 27. Qe5 {[%clk 0:01:04]}  Nc6 {[%clk 0:01:55]} 28. Qf6 {[%clk 0:01:03]}  Qc7 {[%clk 0:01:55]} 29. g6 {[%clk 0:00:56]}  hxg6 {[%clk 0:01:50]} 30. hxg6 {[%clk 0:00:56]}  Rxh1 {[%clk 0:01:43]} 31. Rxh1 {[%clk 0:00:57]}  fxg6 {[%clk 0:01:43]} 32. Qxe6 {[%clk 0:00:55]}  Rd8 {[%clk 0:01:29]} 33. Qxg6 {[%clk 0:00:52]}  f4 {[%clk 0:01:28]} 34. Rh7 {[%clk 0:00:45]}  Qb6 {[%clk 0:01:27]} 35. Qf6 {[%clk 0:00:41]}  Re8 {[%clk 0:01:26]} 36. Rh1 {[%clk 0:00:31]}  Qc7 {[%clk 0:01:23]} 37. Qf5 {[%clk 0:00:28]}  Qd6 {[%clk 0:01:18]} 38. a3 {[%clk 0:00:22]}  Rf8 {[%clk 0:01:17]} 39. Qg4 {[%clk 0:00:20]}  Na5 {[%clk 0:01:13]} 40. Qf3 {[%clk 0:00:20]}  Rf6 {[%clk 0:01:07]} 41. Re1 {[%clk 0:00:18]}  Nc6 {[%clk 0:01:03]} 42. Re8 {[%clk 0:00:16]}  Qd7 {[%clk 0:01:03]} 43. Re1 {[%clk 0:00:14]}  Rf8 {[%clk 0:01:01]} 44. Rh1 {[%clk 0:00:13]}  Na5 {[%clk 0:00:48]} 45. Ka2 {[%clk 0:00:12]}  Rf6 {[%clk 0:00:42]} 46. Rh5 {[%clk 0:00:12]}  Qa4 {[%clk 0:00:40]} 47. Qxd5 {[%clk 0:00:11]}  Rb6 {[%clk 0:00:40]} 48. b4 {[%clk 0:00:05]}  Nc6 {[%clk 0:00:35]} 49. Qb3 {[%clk 0:00:04]}  Qxb3+ {[%clk 0:00:31]} 50. Kxb3 {[%clk 0:00:05]}  Ne7 {[%clk 0:00:32]} 51. Re5 {[%clk 0:00:05]}  Ng8 {[%clk 0:00:32]} 52. Rf5 {[%clk 0:00:05]}  Re6 {[%clk 0:00:32]} 53. Bc4 {[%clk 0:00:04]}  Re8 {[%clk 0:00:32]} 54. Bxg8 {[%clk 0:00:05]}  Rxg8 {[%clk 0:00:33]} 55. Rxf4 {[%clk 0:00:06]}  Rg1 {[%clk 0:00:33]} 56. a4 {[%clk 0:00:06]}  Rb1+ {[%clk 0:00:33]} 57. Kc4 {[%clk 0:00:06]}  Rf1 {[%clk 0:00:34]} 58. a5 {[%clk 0:00:07]}  Ra1 {[%clk 0:00:35]} 59. Rf7 {[%clk 0:00:06]}  Rf1 {[%clk 0:00:36]} 60. d5 {[%clk 0:00:06]}  Rd1 {[%clk 0:00:35]} 61. Kc5 {[%clk 0:00:06]}  Kb8 {[%clk 0:00:36]} 62. c4 {[%clk 0:00:06]}  Rc1 {[%clk 0:00:35]} 63. Kb6 {[%clk 0:00:05]}  Kc8 {[%clk 0:00:36]} 64. Rc7+ {[%clk 0:00:04]}  Kd8 {[%clk 0:00:36]} 65. Kxb7 {[%clk 0:00:03]}  Rb1 {[%clk 0:00:37]} 66. b5 {[%clk 0:00:03]}  Rb3 {[%clk 0:00:38]} 67. b6 {[%clk 0:00:03]}  Rb2 {[%clk 0:00:38]} 68. c5 {[%clk 0:00:03]}  Ke8 {[%clk 0:00:39]} 69. c6 {[%clk 0:00:04]}  Kf8 {[%clk 0:00:40]} 70. Ka7 {[%clk 0:00:04]}  Kg8 {[%clk 0:00:41]} 71. b7 {[%clk 0:00:05]}  Kf8 {[%clk 0:00:42]} 72. Rd7 {[%clk 0:00:05]}  Ke8 {[%clk 0:00:43]} 73. f4 {[%clk 0:00:05]}  Kf8 {[%clk 0:00:44]} 74. f5 {[%clk 0:00:06]}  Kg8 {[%clk 0:00:45]} 75. f6 {[%clk 0:00:06]}  Rxb7+ {[%clk 0:00:46]} 76. cxb7 {[%clk 0:00:06]}  Kf8 {[%clk 0:00:47]} 77. b8=Q# {[%clk 0:00:06]} 1-0


[Site "https://www.chess.com"]

[Event "Titled Tuesday Blitz March 08 Early 2022"]
[White "Manelyuk, Daniil"]
[Black "Rudzinska, Michalina"]
[WhiteFideId "44173920"]
[BlackFideId "1172883"]
[WhiteElo "2222"]
[BlackElo "1904"]
[Result "1-0"]
[Round "07"]
[TimeControl "180+1"]
[Date "2022.03.09"]
[WhiteClock "0:01:06"]
[BlackClock "0:00:34"]

1. e4 {[%clk 0:03:00]}  c5 {[%clk 0:02:57]} 2. Nf3 {[%clk 0:02:58]}  e6 {[%clk 0:02:58]} 3. c4 {[%clk 0:02:57]}  Nc6 {[%clk 0:02:57]} 4. Nc3 {[%clk 0:02:56]}  Nd4 {[%clk 0:02:54]} 5. Bd3 {[%clk 0:02:54]}  Ne7 {[%clk 0:02:53]} 6. Nxd4 {[%clk 0:02:54]}  cxd4 {[%clk 0:02:53]} 7. Ne2 {[%clk 0:02:54]}  Nc6 {[%clk 0:02:54]} 8. Bc2 {[%clk 0:02:54]}  g6 {[%clk 0:02:55]} 9. d3 {[%clk 0:02:54]}  Bg7 {[%clk 0:02:55]} 10. O-O {[%clk 0:02:54]}  O-O {[%clk 0:02:56]} 11. f4 {[%clk 0:02:52]}  d5 {[%clk 0:02:56]} 12. cxd5 {[%clk 0:02:42]}  exd5 {[%clk 0:02:57]} 13. exd5 {[%clk 0:02:42]}  Qxd5 {[%clk 0:02:56]} 14. Bb3 {[%clk 0:02:42]}  Qd6 {[%clk 0:02:47]} 15. Ng3 {[%clk 0:02:40]}  Be6 {[%clk 0:02:46]} 16. Ne4 {[%clk 0:02:38]}  Qe7 {[%clk 0:02:46]} 17. f5 {[%clk 0:02:29]}  Bxb3 {[%clk 0:02:45]} 18. axb3 {[%clk 0:02:17]}  Qe5 {[%clk 0:02:10]} 19. f6 {[%clk 0:02:11]}  Bh8 {[%clk 0:02:10]} 20. Bh6 {[%clk 0:02:10]}  Rfe8 {[%clk 0:02:09]} 21. Rc1 {[%clk 0:02:09]}  Re6 {[%clk 0:02:03]} 22. Rc5 {[%clk 0:02:06]}  Qc7 {[%clk 0:02:02]} 23. b4 {[%clk 0:02:00]}  a6 {[%clk 0:01:59]} 24. Qg4 {[%clk 0:01:51]}  Rae8 {[%clk 0:01:41]} 25. Qh3 {[%clk 0:01:49]}  Re5 {[%clk 0:01:31]} 26. Bf4 {[%clk 0:01:45]}  Qd8 {[%clk 0:01:24]} 27. Bxe5 {[%clk 0:01:34]}  Nxe5 {[%clk 0:01:25]} 28. Qh6 {[%clk 0:01:19]}  Ng4 {[%clk 0:01:19]} 29. Qh4 {[%clk 0:01:18]}  Ne3 {[%clk 0:01:09]} 30. Rh5 {[%clk 0:01:09]}  gxh5 {[%clk 0:01:06]} 31. Qg5+ {[%clk 0:01:09]}  Kf8 {[%clk 0:01:05]} 32. Qh6+ {[%clk 0:01:09]}  Kg8 {[%clk 0:01:04]} 33. Ng5 {[%clk 0:01:09]}  Qxf6 {[%clk 0:00:35]} 34. Rxf6 {[%clk 0:01:07]}  Bxf6 {[%clk 0:00:34]} 35. Qxh7+ {[%clk 0:01:06]}  Kf8 {[%clk 0:00:34]} 36. Qxf7# {[%clk 0:01:06]} 1-0


[Site "https://www.chess.com"]

[Event "Titled Tuesday Blitz March 08 Early 2022"]
[White "Manukian, Artak"]
[Black "Mekhitarian, Krikor Sevag"]
[WhiteFideId "13301373"]
[BlackFideId "2107660"]
[WhiteElo "2508"]
[BlackElo "2598"]
[Result "1/2-1/2"]
[Round "07"]
[TimeControl "180+1"]
[Date "2022.03.09"]
[WhiteClock "0:00:11"]
[BlackClock "0:00:16"]

1. e4 {[%clk 0:03:00]}  c5 {[%clk 0:03:00]} 2. Nf3 {[%clk 0:03:00]}  g6 {[%clk 0:03:00]} 3. c3 {[%clk 0:03:00]}  d5 {[%clk 0:03:00]} 4. exd5 {[%clk 0:03:00]}  Qxd5 {[%clk 0:03:01]} 5. d4 {[%clk 0:03:01]}  Bg7 {[%clk 0:03:01]} 6. dxc5 {[%clk 0:03:00]}  Qxd1+ {[%clk 0:02:58]} 7. Kxd1 {[%clk 0:03:01]}  Nf6 {[%clk 0:02:58]} 8. Be3 {[%clk 0:02:58]}  Ng4 {[%clk 0:02:54]} 9. Nbd2 {[%clk 0:02:56]}  Nxe3+ {[%clk 0:02:53]} 10. fxe3 {[%clk 0:02:56]}  Nd7 {[%clk 0:02:51]} 11. Nb3 {[%clk 0:02:54]}  O-O {[%clk 0:02:48]} 12. Bb5 {[%clk 0:02:38]}  Nf6 {[%clk 0:02:44]} 13. Ke2 {[%clk 0:02:36]}  a6 {[%clk 0:02:28]} 14. Ba4 {[%clk 0:02:20]}  Be6 {[%clk 0:02:21]} 15. Nbd4 {[%clk 0:02:11]}  Bc4+ {[%clk 0:02:19]} 16. Ke1 {[%clk 0:02:05]}  Rfd8 {[%clk 0:02:10]} 17. Bb3 {[%clk 0:02:03]}  Bd5 {[%clk 0:02:01]} 18. Bxd5 {[%clk 0:01:42]}  Nxd5 {[%clk 0:02:01]} 19. Kf2 {[%clk 0:01:39]}  Rac8 {[%clk 0:01:57]} 20. Nb3 {[%clk 0:01:38]}  Bh6 {[%clk 0:01:43]} 21. Rhe1 {[%clk 0:01:37]}  Nf6 {[%clk 0:01:43]} 22. h3 {[%clk 0:01:28]}  Ne4+ {[%clk 0:01:42]} 23. Ke2 {[%clk 0:01:27]}  Nxc5 {[%clk 0:01:38]} 24. Nxc5 {[%clk 0:01:25]}  Rxc5 {[%clk 0:01:39]} 25. Red1 {[%clk 0:01:25]}  Rcd5 {[%clk 0:01:29]} 26. Rxd5 {[%clk 0:01:25]}  Rxd5 {[%clk 0:01:30]} 27. e4 {[%clk 0:01:08]}  Rd8 {[%clk 0:01:20]} 28. Rd1 {[%clk 0:01:07]}  Rxd1 {[%clk 0:01:19]} 29. Kxd1 {[%clk 0:01:08]}  Kf8 {[%clk 0:00:57]} 30. c4 {[%clk 0:01:07]}  Ke8 {[%clk 0:00:57]} 31. b4 {[%clk 0:01:04]}  Kd7 {[%clk 0:00:54]} 32. Kc2 {[%clk 0:01:04]}  f5 {[%clk 0:00:54]} 33. exf5 {[%clk 0:00:46]}  gxf5 {[%clk 0:00:55]} 34. a4 {[%clk 0:00:42]}  Bg7 {[%clk 0:00:52]} 35. g4 {[%clk 0:00:31]}  e6 {[%clk 0:00:43]} 36. gxf5 {[%clk 0:00:29]}  exf5 {[%clk 0:00:43]} 37. Kd3 {[%clk 0:00:29]}  Bf6 {[%clk 0:00:42]} 38. c5 {[%clk 0:00:28]}  Ke6 {[%clk 0:00:42]} 39. Kc4 {[%clk 0:00:27]}  f4 {[%clk 0:00:42]} 40. b5 {[%clk 0:00:28]}  axb5+ {[%clk 0:00:41]} 41. axb5 {[%clk 0:00:28]}  Kf5 {[%clk 0:00:40]} 42. Kd5 {[%clk 0:00:28]}  Bd8 {[%clk 0:00:35]} 43. c6 {[%clk 0:00:27]}  bxc6+ {[%clk 0:00:35]} 44. bxc6 {[%clk 0:00:28]}  Bb6 {[%clk 0:00:31]} 45. Nd4+ {[%clk 0:00:20]}  Kf6 {[%clk 0:00:30]} 46. Ke4 {[%clk 0:00:20]}  Bc7 {[%clk 0:00:27]} 47. Nb5 {[%clk 0:00:20]}  Bb6 {[%clk 0:00:23]} 48. c7 {[%clk 0:00:20]}  Bxc7 {[%clk 0:00:24]} 49. Nxc7 {[%clk 0:00:21]}  Kg5 {[%clk 0:00:25]} 50. Nd5 {[%clk 0:00:18]}  Kh4 {[%clk 0:00:24]} 51. Nxf4 {[%clk 0:00:18]}  Kg3 {[%clk 0:00:23]} 52. Kf5 {[%clk 0:00:19]}  h6 {[%clk 0:00:24]} 53. Ke5 {[%clk 0:00:18]}  Kf3 {[%clk 0:00:22]} 54. Kf5 {[%clk 0:00:17]}  Kg3 {[%clk 0:00:22]} 55. Ke4 {[%clk 0:00:18]}  Kf2 {[%clk 0:00:16]} 56. Kf5 {[%clk 0:00:11]}  Kg3 {[%clk 0:00:16]} 1/2-1/2


[Site "https://www.chess.com"]